Cogmind - Beta 16.1 @@@ ROGUE MODE // 2026.02.23 @ 04:23:19 Player: Sen Result: Destroyed by G-34 Mercenary with Small Laser Performance ------------- Evolutions (1) 500 Regions Visited (2) 400 Robots Destroyed (22) 110 Value Destroyed (667) 667 Prototype IDs (0) 0 Alien Tech Used (0) 0 Bonus (0) 0 TOTAL SCORE: 1677 Bonus ------- None Cogmind --------- Core Integrity 0/400 Matter 300/300 Energy 229/265 System Corruption 0% Temperature Cool (7) Movement Walking (120) Location -9/Materials Parts ------- > --- POWER (1) -------- Improved Ion Engine > --- PROPULSION (2) --- Aluminum Leg > --- UTILITY (4) ------ Weight Redist. System Visual Processing Unit > --- WEAPON (2) ------- (None) > --- INVENTORY (5) ---- Ion Engine Hacking Suite Peak State ------------ > --- POWER ------------ Improved Ion Engine > --- PROPULSION ------- Aluminum Leg Aluminum Leg > --- UTILITY ---------- Heat Sink Weight Redist. System Visual Processing Unit Hardened Light Armor Plating > --- WEAPON ----------- Mace Katana > --- INVENTORY -------- Ion Engine Aluminum Leg Wheel Medium Laser Assault Rifle [Rating: 16] Favorites ----------- Power Ion Engine Engine Ion Engine Propulsion Aluminum Leg Leg Aluminum Leg Utility Visual Processing Unit Device Heat Sink Processor Visual Processing Unit Protection Hardened Light Armor Plating Weapon Medium Laser Energy Gun Medium Laser Ballistic Gun Assault Rifle Impact Weapon Mace Slashing Weapon Katana Build | -11 -10 -9 ------- Run | Yrd Mat Mat Slots Evolved 2 | . . 2 Power . | . . . Propulsion . | . . . Utility 2 | . . 2 Weapon . | . . . Parts Attached 23 | 5 . 18 Power 4 | 1 . 3 Engine 4 | 1 . 3 Core . | . . . Reactor . | . . . Propulsion 7 | 2 . 5 Treads . | . . . Leg 7 | 2 . 5 Wheel . | . . . Hover . | . . . Flight . | . . . Utility 6 | . . 6 Device 3 | . . 3 Storage . | . . . Processor 1 | . . 1 Hackware . | . . . Protection 2 | . . 2 Artifact . | . . . Weapon 6 | 2 . 4 Energy Gun 1 | 1 . . Energy Cannon . | . . . Ballistic Gun 3 | 1 . 2 Ballistic Cannon . | . . . Launcher . | . . . Special Weapon . | . . . Impact Weapon 1 | . . 1 Slashing Weapon 1 | . . 1 Piercing Weapon . | . . . Special Melee Weapon . | . . . Unidentified Prototypes . | . . . Parts Lost 13 | . . 13 Power 2 | . . 2 Propulsion 5 | . . 5 Utility 4 | . . 4 Weapon 2 | . . 2 Highest Loss Streak 9 | . . 9 To Critical Strikes . | . . . Average Backups 3 | . 3 4 Power . | . 1 . Propulsion 1 | . . 1 Utility . | . . . Weapon 1 | . 2 1 Tool/Special . | . . . Unused Backups 4 | . . 4 Power 1 | . . 1 Propulsion 1 | . . 1 Utility 1 | . . 1 Weapon 1 | . . 1 Tool/Special . | . . . Average Slot Usage (%) 77 | . 71 79 Engine 11 | . 14 10 Leg 22 | . 28 20 Device 9 | . . 12 Processor 6 | . . 8 Protection 4 | . . 6 Energy Gun 6 | . 14 3 Ballistic Gun 7 | . 14 5 Impact Weapon 2 | . . 3 Slashing Weapon 5 | . . 7 Peak Build Rating 16 | 5 5 16 Average Rating 9 | 3 5 11 On Entrance 3 | . 5 5 Avg Prop Armor Cover (%) . | . . . Naked Turns . | . . . Heaviest Build 17 | 9 9 17 Greatest Support 26 | 20 20 26 Greatest Overweight (x) . | . . . Average Overweight (x) . | . . . Largest Inventory Capacity 5 | 5 5 5 Average Capacity 5 | 5 5 5 Most Carried 5 | 2 5 5 Average Carried 4 | . 3 4 Final Capacity 5 | 5 5 5 Final Carried 5 | 2 5 2 Class Distribution -------------------- 58% | Mutant 41% | Scavenger-Mutant Dominant Class ---------------- Mutant | -10/Materials Scavenger-Mutant | -9/Materials Resources | -11 -10 -9 ----------- Run | Yrd Mat Mat Matter Collected 468 | 77 127 264 Remotely . | . . . Salvage Created 757 | . 73 684 Parts 52 | . 6 46 Haulers Intercepted . | . . . Recyclers Shooed . | . . . Parts Field Recycled . | . . . Retrieved Matter . | . . . Parts Self-Destructed . | . . . Prevented . | . . . Parts Restored . | . . . Kills | -11 -10 -9 ------- Run | Yrd Mat Mat Combat Hostiles Destroyed 17 | . 3 14 Melee 7 | . . 7 Guns 10 | . 3 7 Classes Destroyed 7 | . 3 4 Worker 1 | . 1 . Operator 1 | . . 1 Watcher 3 | . 1 2 Swarmer 3 | . 3 . Grunt 7 | . . 7 Duelist 3 | . . 3 Sentry 4 | . . 4 Best Kill Streak 4 | . 4 3 Combat Bots Only 3 | . 3 3 Max Kills in Single Turn 1 | . 1 1 Gunslinging . | . . . Exploded . | . . . Melee 1 | . . 1 Uniques/NPCs Destroyed . | . . . Combat | -11 -10 -9 -------- Run | Yrd Mat Mat Hostile Shots Fired 158 | . 8 150 Missed 40 | . 2 38 Hits 118 | . 6 112 Melee 16 | . . 16 Projectile 102 | . 6 96 Critical Strikes 6 | . . 6 Damage Taken 1770 | . 51 1719 Core 406 | . . 406 Absorbed by Shields . | . . . Core Remaining (%) 100 | 100 100 . Volleys Fired 34 | . 7 27 Largest 2 | . 2 2 Hottest 70 | . 70 70 Shots Fired 63 | . 14 49 Gun 63 | . 14 49 Cannon . | . . . Launcher . | . . . Special . | . . . Kinetic 33 | . 7 26 Thermal 30 | . 7 23 Explosive . | . . . Electromagnetic . | . . . Robot Hit Streak 13 | . 4 13 Robot Miss Streak 7 | . 4 7 Penetration Max . | . . . Secondary Targets 2 | . . 2 Max Gunslinging Chain 1 | . . 1 Shots Hit Robots 70 | . 4 66 Core Hits 34 | . 5 29 Critical Kills . | . . . Critical Parts Destroyed . | . . . Critical Strikes 10 | . 1 9 Burn 3 | . 1 2 Sever 7 | . . 7 Melee Attacks 44 | . . 44 Impact 2 | . . 2 Slashing 42 | . . 42 Piercing . | . . . Sneak Attacks 1 | . . 1 Combat Hostiles . | . . . Follow-up Attacks 1 | . . 1 Damage Inflicted 1466 | . 64 1402 Guns 436 | . 64 372 Cannons . | . . . Explosions . | . . . Melee 1030 | . . 1030 Ramming . | . . . Kinetic 173 | . . 173 Thermal 263 | . 64 199 Explosive . | . . . Electromagnetic . | . . . Impact . | . . . Slashing 1030 | . . 1030 Piercing . | . . . Highest Corruption . | . . . Average Corruption . | . . . Corruption Purged . | . . . Corruption Blocked . | . . . Overload Shots . | . . . Overflow Damage 1 | . . 1 Projectiles . | . . . Explosions . | . . . Melee 1 | . . 1 Knockbacks . | . . . Impact . | . . . Kinetic . | . . . Secondary . | . . . Self-Inflicted Damage . | . . . Shots . | . . . Rammed . | . . . Targets Rammed . | . . . Kicked . | . . . Crushed . | . . . Highest Temperature 49 | . 18 49 Average Temperature 13 | . 8 16 Received Heat Transfer 600 | . . 600 Siege Activations . | . . . Martial Activations . | . . . Shielding Activations . | . . . Robots Disrupted . | . . . Combat Hostiles . | . . . Robots Corrupted . | . . . Combat Hostiles . | . . . Parts Fried . | . . . Impact Corruptions . | . . . Robots Melted . | . . . Combat Hostiles . | . . . Parts Melted 2 | . . 2 Heat Transferred 999 | . 259 740 Parts Sabotaged . | . . . Parts Stolen . | . . . Parts Stripped . | . . . Power Chain Reactions . | . . . Alert | -11 -10 -9 ------- Run | Yrd Mat Mat Maximum Alert Level . | . . . Low Security (%) 100 | 100 100 100 Level 1 . | . . . Level 2 . | . . . Level 3 . | . . . Level 4 . | . . . Level 5 . | . . . High Security . | . . . Max Security . | . . . Peak Influence 90 | . 71 90 Initial 18 | . . 18 Average 27 | . 14 34 Influence Increases 512 | . 88 424 Destroy 0b10 Robot/C 340 | . 60 280 Destroy 0b10 Robot/NC 25 | . 10 15 Destroy Leader 126 | . 12 114 Successful Hack 5 | . 5 . Destroy Structure 1 | . 1 . Lose Combat Pursuer 15 | . . 15 Influence Decreases 447 | . 42 405 Entered New Map 28 | . . 28 Time Decay 289 | . 42 247 Lost Part 130 | . . 130 Squads Dispatched 3 | . . 3 Investigation . | . . . Extermination . | . . . Reinforcement 3 | . . 3 Assault . | . . . Garrison . | . . . Intercept . | . . . Searches Triggered . | . . . Construction Impeded . | . . . Haulers Reinforced . | . . . Active Scanning Responses . | . . . Cargo Convoy Interrupts . | . . . Stealth | -11 -10 -9 --------- Run | Yrd Mat Mat Distress Signals 1 | . . 1 Communications Jammed . | . . . Distress Signals . | . . . Times Spotted 32 | . 6 26 Peak Tracking Total 8 | . 3 8 Tactical Retreats 1 | . . 1 Traps | -11 -10 -9 ------- Run | Yrd Mat Mat Traps Triggered . | . . . Indirectly . | . . . Trap Hack Attempts . | . . . Triggered . | . . . Disarmed . | . . . Reprogrammed . | . . . Reused . | . . . Traps Extracted . | . . . Installed . | . . . Triggered . | . . . Machines | -11 -10 -9 ---------- Run | Yrd Mat Mat Machines Disabled . | . . . Max in Single Turn . | . . . Machines Repaired . | . . . Machines Dismantled . | . . . Machines Sabotaged . | . . . Overloaded Fab Kills . | . . . Hacking | -11 -10 -9 --------- Run | Yrd Mat Mat Machines Accessed 2 | . 1 1 Terminals 2 | . 1 1 Fabricators . | . . . Repair Stations . | . . . Recycling Units . | . . . Scanalyzers . | . . . Garrison Access . | . . . Total Hacks 4 | . 3 1 Successful 1 | . 1 . Failed 3 | . 2 1 Catastrophic 1 | . . 1 Database Lockouts . | . . . Manual 4 | . 3 1 Terminals 4 | . 3 1 Fabricators . | . . . Repair Stations . | . . . Recycling Units . | . . . Scanalyzers . | . . . Garrison Access . | . . . Terminal Hacks . | . . . Fabricator Hacks . | . . . Repair Station Hacks . | . . . Recycling Unit Hacks . | . . . Scanalyzer . | . . . Garrison Access Hacks . | . . . Unauthorized Hacks 1 | . 1 . Terminals 1 | . 1 . Botnet 1 | . 1 . Fabricators . | . . . Repair Stations . | . . . Recycling Units . | . . . Scanalyzers . | . . . Garrison Access . | . . . Data Cores Recovered . | . . . Used . | . . . Hacking Detections 2 | . 1 1 Full Trace Events 1 | . 1 . Feedback Events . | . . . Feedback Blocked . | . . . Robot Schematics Acquired . | . . . Robots Built . | . . . Authchips . | . . . Time . | . . . Total Robot Build Rating . | . . . Part Schematics Acquired . | . . . Parts Built . | . . . Authchips . | . . . Time . | . . . Total Part Build Rating . | . . . Part Studies Acquired . | . . . Parts Repaired . | . . . Time . | . . . Parts Recycled . | . . . Recycled Matter . | . . . Retrieved Matter . | . . . Retrieved Components . | . . . Parts Scanalyzed . | . . . Part Schematics Acquired . | . . . Parts Damaged . | . . . Bothacking | -11 -10 -9 ------------ Run | Yrd Mat Mat Used RIF Installer . | . . . Robots Hacked . | . . . Non-combat . | . . . Combat . | . . . Robot Hacks Applied . | . . . Relay Couplers Released . | . . . Fabnet Peak Effective % . | . . . Robots Rewired . | . . . Allies Hacked . | . . . Hacks Repelled . | . . . Allies | -11 -10 -9 -------- Run | Yrd Mat Mat Total Allies . | . . . Largest Group . | . . . Highest-Rated Group . | . . . Highest-Rated Ally . | . . . Total Orders . | . . . Ally Attacks . | . . . Total Damage . | . . . Kills . | . . . Allies Corrupted . | . . . Allies Melted . | . . . Intel | -11 -10 -9 ------- Run | Yrd Mat Mat Active Infowar (turns) 496 | . . 496 Optics 496 | . . 496 Robot Analysis Total . | . . . Derelict Logs Recovered . | . . . Drone Launches . | . . . Drone Recoveries . | . . . Exploration | -11 -10 -9 ------------- Run | Yrd Mat Mat Turns Passed 867 | 46 225 596 Spaces Moved 491 | 36 167 288 Core 9 | 8 . 1 Treads . | . . . Legs 482 | 28 167 287 Wheels . | . . . Hover . | . . . Flight . | . . . Fastest Speed 50 | 50 120 50 Average Speed 118 | 104 120 119 Slowest Speed 120 | 120 120 120 Overloaded Moves . | . . . Propulsion Burnouts . | . . . Robots Hopped . | . . . Potential Cave-ins . | . . . Cave-ins Triggered . | . . . Exploration Rate (%) 19 | 3 31 25 Regions Visited 2 Branch Regions . Pre-discovered Areas . | . . . Known Exits Taken . | . . . Unknown Exits Taken 2 | 1 1 . Scrap Searched . | . . . Spaces Dug . | . . . Terrain Destroyed . | . . . Melee . | . . . Projectile . | . . . AOE . | . . . Terrain Rammed . | . . . Walls Destroyed . | . . . Machines Disabled . | . . . Actions | -11 -10 -9 --------- Run | Yrd Mat Mat Total 645 | 42 177 426 Wait 38 | . 1 37 Move 489 | 35 166 288 Hop . | . . . Pick Up 9 | 2 3 4 Fast Attach 18 | 5 . 13 Attach 4 | . . 4 Detach . | . . . Swap 3 | . . 3 Drop 8 | . . 8 Fire 34 | . 7 27 Melee 42 | . . 42 Ram . | . . . Kick . | . . . Crush . | . . . Escape Stasis . | . . . Rewire . | . . . Trap . | . . . Miscellaneous . | . . . Route ------- -11/Scrapyard -10/Materials -9/Materials History --------- Turn | Location | Event 2 | -11/Scrapyard | Met Revision 17 7 | -11/Scrapyard | Discovered new exit (range 15) 47 | -11/Scrapyard | Entered Materials 155 | -10/Materials | Discovered new exit (range 10) 272 | -10/Materials | Entered another Materials area 272 | -9/Materials | Evolved 2 slots: Utility x2 314 | -9/Materials | Build established: Mutant 793 | -9/Materials | Core integrity fell below 50% 794 | -9/Materials | Build established: Scavenger-Mutant 833 | -9/Materials | Core integrity fell below 20% 868 | -9/Materials | Destroyed by G-34 Mercenary with Small Laser Last Messages --------------- 00838_ K-01 Serf collects debris. 00840_ Heat Sink destroyed. 00841_ L-31 Rogue Imp. Aluminum Leg severed. 00841_ K-01 Serf collects debris. 00845_ K-01 Serf cleans the Repair Station. 00848_ Aluminum Leg destroyed. 00849_ K-01 Serf cleans the Repair Station. 00852_ L-31 Rogue destroyed. 00853_ Acquired 35 matter. 00853_ K-01 Serf collects debris. 00855_ G-34 Mercenary Sml. Laser severed. 00856_ K-01 Serf collects debris. 00857_ Y-45 Defender destroyed. 00858_ Aluminum Leg destroyed. 00858_ K-01 Serf collects debris. 00861_ K-01 Serf cleans the Repair Station. 00863_ Dropped Wheel. 00864_ Acquired 10 matter. 00866_ K-01 Serf collects debris. 00866_ Katana destroyed. Map ----- +----------------------------------------------------+ | | | | | ?????????????????????????????????????????????????? | | ?????????????????????????????????????????????????? | | ?????????????????????????????????????????????????? | | ?????????????????????????????????????????????????? | | ?????????????????????????????????????????????????? | | ?????????????????????????????????????????????????? | | ?????????????????????????????????????????????????? | | ?????????????????????????????????????????????????? | | ?????????????????????????????????????????????????? | | ?????????????????????????????????????????????????? | | ?????????????????????? [ ????????????????????????? | | ?????????????????????? ????????????????????????? | | ?????????????????????? ?????????????????????#### | | ??????????????????????# #?????????????????????# | | ??????????????????????# #?????????????????????# | | ??????????????????????#+######????????????????# !! | | ??????????????????????# #????????????????# !! | | ??????????????????????# #????????????????# !! | | ??????????????????????#"""= #???????????????## | | ??????????????????????#"R*![ #???????????????# | | ??????????????????????#"""!=!#???????????????## | | ????????????????##????#%kg=!!#????????????????# | | ????????????????# ###/######################## | | ????????????????# [[@%= g | | ???????? /o T g![= | | ?????????? # | | ????????????????# ###+#############+########## | | ????????????????## #?? ?????????? ???????# | | ?????????????????# ??? ?????????# """ #?????# | | ?????????????????# ???? ?????????# """ [#?????# | | ?????????????????# ????? "T?????????# """ #?????# | | ?????????????????#?????? ""?????????# #?????# | | ???????????????????????? ?????????#= #?????# | | ????????????????????????###?????????########?????# | | ?????????????????????????????????????????????????# | | ?????????????????????????????????????????????????# | | ?????????????????????????????????????????????????# | | ??????????????????????????????????????????????#### | | ??????????????????????????????????????????????# | | ??????????????????????????????????????????????# | | ??????????????????????????????????????????????# | | ??????????????????????????????????????????????# | | ??????????????????????????????????????????????# | | ??????????????????????????????????????????????# | | ??????????????????????????????????????????????# | | ??????????????????????????????????????????????# | | ??????????????????????????????????????????????#### | | ?????????????????????????????????????????????????? | +----------------------------------------------------+ Best States ------------- Heat Dissipation 38 Energy Generation 12 Energy Capacity 265 Matter Stores 300 Matter Capacity 300 Sight Range 18 Terrain Scan Density 10 Additional Mass Support 6 Armor Coverage 150 Evasion (%) 55 Item Schematics ----------------- None Robot Schematics ------------------ None Fabricated ------------ Nothing Repaired ---------- Nothing Studied --------- None Alien Tech Used ----------------- None Achievements -------------- You Again Challenges ------------ None Game ------ Seed PoweredLauncherMount Manual? 0 Play Time 00:13:05 Cumulative 95.0 hours Start 2026.02.23 @ 04:11:28 End 2026.02.23 @ 04:23:19 Sessions 1 Manual Loads 0 Difficulty Rogue Special Mode None Game No. 85 Rogue 85 Adventurer 0 Explorer 0 Win Type - Total 0 Types 0/0/0/0/0/0/0/0/0/0 Lore% 39 Gallery% 39 Achievement% 28 Wizard Run 0 Options --------- Layout 1 ASCII 1 Keyboard 1 Movement Numpad Keybinds 0 Fullscreen 1 Font 24/Smallcaps Map View 50x35 Zoom Use 0% Tactical HUD 1 Map Filters NONE Filters NONE Steam 1 RUN: 6cfd176b-cd9f-4318-aba4-fe62dabce6d7